bitfinex/quotes_ETHUSD_20250822
["timestamp","ask_amount","ask_price","bid_price","bid_amount"]
[1755878681888,1.671,4655.8,4653.4,3.66]
[1755878682056,4.104,4654.9,4654.5,3.0]
[1755878682258,4.104,4654.9,4654.7,0.2987]
[1755878682591,0.066,4654.9,4654.7,0.98018366]
[1755878682788,0.066,4654.9,4654.7,1.15191634]
[1755878682974,0.066,4654.9,4654.5,3.0]
[1755878683576,0.066,4654.9,4654.5,3.16358612]
[1755878683777,0.066,4654.9,4654.5,0.16358612]
[1755878683979,4.058,4654.8,4653.8,4.92400773]
[1755878684189,0.02,4654.8,4653.8,3.0]
[1755878684363,0.02,4654.8,4653.8,3.18827528]
[1755878684558,0.02,4654.8,4653.8,3.0]
[1755878685269,0.02,4654.8,4654.7,0.2987]
[1755878685459,0.02,4654.8,4654.7,0.32018366]
[1755878685660,0.02,4654.8,4654.7,0.78438366]
[1755878685861,0.04043592,4654.9,4654.7,0.78438366]
[1755878686095,0.04043592,4654.9,4654.7,0.2987]
[1755878686306,0.04043592,4654.9,4654.8,0.4642]
[1755878686464,0.04043592,4654.9,4654.8,0.7629]
[1755878686656,0.04043592,4654.9,4654.8,1.4229]
[1755878687891,0.04043592,4654.9,4654.8,1.6230474]
[1755878688209,0.022,4655.8,4654.9,0.90187439]
[1755878688460,0.022,4655.8,4655.7,17.66225399]
[1755878688615,0.4728,4657.3,4655.7,17.66225399]
[1755878688616,4.026,4657.2,4655.8,3.66]
[1755878688906,4.026,4657.2,4656.6,17.00225399]
[1755878689111,0.002,4657.2,4656.7,33.66]
[1755878689292,0.02,4658.8,4656.9,3.66]
[1755878689618,0.02,4658.8,4657.7,17.36355399]
[1755878689823,0.02,4658.8,4657.7,17.86240139]
[1755878690184,0.02,4658.8,4657.7,17.66660139]
[1755878690503,0.02,4658.8,4657.7,17.20240139]
[1755878690708,0.02,4658.8,4657.7,17.66660139]
[1755878690998,0.02,4658.8,4657.7,18.32660139]
[1755878691202,0.02,4658.8,4657.7,17.06359646]
[1755878691404,0.02,4658.8,4657.8,3.66]
[1755878691605,0.02,4658.8,4658.7,17.00225399]
[1755878691907,0.02,4658.8,4658.7,16.90370139]
[1755878692219,0.02,4658.8,4658.7,3.2001474]
[1755878693024,0.02,4658.8,4658.7,0.2001474]
[1755878693373,0.8038,4658.8,4658.7,0.2001474]
[1755878693786,4.8258,4658.8,4658.7,0.2001474]
[1755878694005,5.30838,4658.8,4658.7,0.2001474]
[1755878694289,0.02,4658.8,4658.7,0.2001474]
[1755878694724,0.8038,4658.8,4658.7,0.2001474]
[1755878695294,0.8038,4658.8,4658.7,0.19843815]
[1755878695516,0.8038,4658.8,4656.8,13.70355399]
[1755878695689,0.8038,4658.8,4656.4,13.89233009]
[1755878695690,0.333,4658.8,4656.4,13.89233009]
[1755878695890,0.9063,4658.7,4656.4,13.70355399]
[1755878696110,2.1208,4658.6,4656.4,13.70355399]
[1755878696324,0.4708,4658.5,4656.4,13.86805696]
[1755878696943,0.66,4658.4,4656.4,0.16450297]
[1755878697225,6.808,4658.6,4656.1,0.4642]
[1755878697226,0.4708,4658.3,4656.1,0.4642]
[1755878697386,4.021,4658.2,4656.3,13.70355399]
[1755878697587,0.91998,4658.1,4656.3,13.86556113]
[1755878698217,0.4708,4658.0,4657.8,0.02]
[1755878698410,0.313,4657.9,4657.8,0.02]
[1755878698608,0.7838,4657.9,4657.8,0.02]
[1755878699122,0.891,4657.9,4657.8,0.02]
[1755878699329,1.427118,4657.9,4657.8,0.02]
[1755878700336,2.087118,4657.9,4657.8,0.02]
[1755878700628,2.087118,4657.9,4654.8,0.4842]
[1755878700629,3.66,4657.8,4654.8,0.02]
[1755878700793,0.4202,4655.9,4654.8,0.02]
[1755878701011,6.0912,4655.9,4654.8,0.02]
[1755878701214,7.17112,4655.9,4654.8,0.02]
[1755878701412,3.15012,4655.9,4654.8,0.02]
[1755878701634,0.1072,4655.9,4655.0,0.4642]
[1755878701945,4.912,4655.9,4654.9,13.70355399]
[1755878702131,0.1072,4655.9,4655.0,0.02148227]
[1755878702330,0.1072,4655.9,4655.0,3.0]
[1755878702331,4.1282,4655.9,4655.0,3.0]
[1755878702534,4.912,4655.9,4654.9,13.70355399]
[1755878702841,0.1072,4655.9,4655.0,3.0]
[1755878703043,4.1282,4655.9,4655.1,0.02148181]
[1755878703246,4.1282,4655.9,4655.2,0.4642]
[1755878703409,4.1282,4655.9,4655.0,3.1072]
[1755878703814,4.1282,4656.0,4655.8,0.3187]
[1755878704016,4.1282,4656.0,4655.8,0.7829]
[1755878704211,4.1282,4656.0,4655.8,0.3187]
[1755878704463,0.7838,4655.9,4655.8,0.02]
[1755878705629,0.313,4655.9,4655.8,0.02]
[1755878705828,4.021,4655.9,4655.8,0.02]
[1755878706032,4.1282,4655.9,4655.8,0.02]
[1755878706254,4.912,4655.9,4655.8,0.02]
[1755878706454,5.5682,4655.9,4655.8,0.02]
[1755878706842,5.0974,4655.9,4655.8,0.02]
[1755878707758,4.1292,4655.9,4655.8,0.02]
[1755878708118,4.4324,4655.9,4655.8,0.02]
[1755878708336,4.9026,4655.9,4655.8,0.02]
[1755878709362,1.65,4656.2,4655.8,0.02]
[1755878709522,4.022,4655.9,4655.8,0.7792]
[1755878710156,4.022,4655.9,4655.8,0.02]
[1755878710328,4.1292,4655.9,4655.8,13.72355399]
[1755878710655,4.022,4656.4,4655.9,3.0]
[1755878710856,1.65,4657.2,4656.4,3.0]
[1755878711014,0.002,4657.9,4657.2,3.0]
[1755878711217,0.1072,4657.7,4657.3,0.48677166]
[1755878711417,0.1072,4657.7,4657.6,0.2939]
[1755878711920,4.022,4657.8,4656.8,3.0]
[1755878712352,0.1072,4657.6,4657.5,13.70355399]
[1755878712523,4.022,4657.7,4657.5,14.46275399]
[1755878713364,4.022,4657.7,4657.5,13.70355399]
[1755878713666,0.8806,4657.6,4656.0,0.4653]
[1755878713950,0.49046,4657.5,4656.0,0.4653]
[1755878714152,4.022,4657.7,4656.6,13.70355399]
[1755878714455,0.1072,4657.2,4656.7,3.0]
[1755878714657,5.671,4657.1,4656.8,0.02]
[1755878714862,0.4104,4656.9,4656.8,0.02]
[1755878715018,1.06556,4656.9,4656.8,0.02]
[1755878715355,5.08656,4656.9,4656.8,0.02]
[1755878715772,5.55676,4656.9,4656.8,0.02]
[1755878716874,4.1282,4656.9,4656.8,0.02]
[1755878717422,0.1072,4656.9,4656.8,0.7792]
[1755878717646,0.002,4657.8,4656.8,0.7792]
[1755878717955,4.021,4657.7,4657.6,3.0]
[1755878718129,4.021,4657.7,4657.6,3.49281265]
[1755878718334,4.021,4657.7,4657.6,3.95811265]
[1755878718655,4.021,4657.7,4657.6,0.19891265]
[1755878719526,4.02,4657.7,4657.6,0.19891265]
[1755878719854,4.02,4657.7,4657.6,0.95811265]
[1755878720257,4.02,4657.7,4657.6,3.95811265]
[1755878720553,4.02,4657.7,4657.6,3.19891265]
[1755878721050,0.002,4657.8,4657.6,3.95811265]
[1755878721253,0.002,4657.8,4657.6,3.7592]
[1755878721254,4.02,4657.7,4657.6,3.7592]
[1755878721460,4.022,4657.7,4657.6,3.49309448]
[1755878721851,4.022,4657.7,4657.6,3.95831906]
[1755878722268,4.022,4657.7,4657.6,0.19910891]
[1755878722460,4.1292,4657.7,4657.6,0.19910891]
[1755878722826,5.31592,4657.7,4657.6,0.19910891]
[1755878723642,5.31592,4657.7,4656.8,0.02]
[1755878723934,0.4702,4657.6,4656.8,0.02]
[1755878724143,0.4104,4656.9,4656.8,0.02]
[1755878724465,6.0794,4656.9,4656.8,0.02]
[1755878724668,6.68734,4656.9,4656.8,0.02]
[1755878724864,10.71034,4656.9,4656.8,0.02]
[1755878725069,0.66,4656.8,4655.8,0.021]
[1755878725266,0.3632,4655.9,4655.8,0.021]
[1755878725430,3.66,4655.8,4654.7,0.645139]
[1755878725631,0.66,4655.6,4653.8,0.021]
[1755878725969,0.66,4655.4,4653.8,0.021]
[1755878726350,3.66,4655.2,4653.8,0.021]
[1755878726882,3.66,4655.0,4653.8,0.021]
[1755878727060,0.4702,4655.1,4653.8,0.021]
[1755878727264,0.66,4654.8,4653.8,0.021]
[1755878727583,0.7595,4654.7,4653.8,0.021]
[1755878727897,4.019,4654.6,4653.8,0.021]
[1755878728056,1.2297,4654.7,4653.8,0.021]
[1755878728258,4.02,4654.6,4653.8,0.021]
[1755878728496,4.02,4654.5,4653.8,0.021]
[1755878729278,4.1302,4654.4,4653.8,0.021]
[1755878729582,0.4702,4654.4,4653.8,0.021]
[1755878729743,3.66,4654.2,4653.8,0.021]
[1755878729945,5.671,4654.1,4653.8,0.021]
[1755878730152,1.651,4654.0,4653.8,0.021]
[1755878730689,4.02,4653.9,4653.8,0.021]
[1755878731379,4.021,4653.9,4653.8,0.021]
[1755878731680,4.021,4653.9,4653.8,0.4863]
[1755878732091,1.651,4654.1,4653.8,0.4863]
[1755878732312,4.021,4654.0,4653.8,7.021]
[1755878732784,4.021,4654.0,4653.8,6.921]
[1755878732949,4.5882,4654.0,4653.8,6.921]
[1755878733573,4.5882,4654.0,4653.8,7.0]
[1755878733982,1.651,4654.1,4653.3,0.001]
[1755878734481,1.651,4654.1,4653.3,3.4663]
[1755878734682,4.021,4654.0,4653.3,3.4663]
[1755878734881,0.1072,4653.6,4653.3,3.4663]
[1755878735451,0.1072,4653.6,4653.3,0.001]
[1755878735758,0.1072,4653.6,4653.5,0.2939]
[1755878735972,4.021,4653.6,4653.5,0.7592]
[1755878736178,4.02,4653.6,4653.5,0.7592]
[1755878736373,0.1072,4653.8,4653.5,0.7592]
[1755878736558,1.651,4654.1,4653.8,3.0]
[1755878736764,1.651,4654.1,4653.6,0.48678873]
[1755878736765,4.02,4653.9,4653.6,0.4653]
[1755878737269,4.021,4653.9,4653.8,3.2939]
[1755878737471,4.021,4653.9,4653.8,3.7592]
[1755878737663,4.021,4653.9,4653.8,3.8664]
[1755878738978,4.021,4653.9,4653.3,0.001]
[1755878739153,1.651,4653.8,4653.3,0.001]
[1755878739350,4.02,4653.7,4653.4,3.0]
[1755878739649,4.02,4653.7,4653.6,0.2937]
[1755878739850,4.02,4653.7,4653.6,0.7349]
[1755878740359,0.002,4654.1,4653.6,0.7349]
[1755878740683,0.002,4654.1,4654.0,16.70355399]
[1755878740896,0.002,4654.1,4654.0,3.0]
[1755878741117,0.002,4654.1,4654.0,3.26278371]
[1755878741391,1.651,4655.3,4654.0,3.26278371]
[1755878741392,0.02,4654.8,4654.1,3.66]
[1755878741603,0.02,4654.8,4654.4,3.0]
[1755878742489,0.02,4654.8,4654.5,0.02148458]
[1755878742653,0.02,4654.8,4654.4,3.16202487]
[1755878742859,0.02,4654.8,4654.5,1.68655789]
[1755878743485,1.651,4656.1,4654.6,0.68148412]
[1755878743653,5.671,4656.1,4655.4,3.0]
[1755878744261,5.671,4656.1,4655.4,3.17580725]
[1755878744580,4.02,4656.1,4655.4,3.17580725]
[1755878744789,1.651,4657.1,4655.5,0.66]
[1755878745010,1.651,4657.1,4656.7,3.0]
[1755878745208,4.039,4656.8,4656.7,3.0]
[1755878745521,4.039,4656.8,4656.0,3.0]
[1755878747019,0.4404,4656.5,4654.9,4.018]
[1755878747323,0.88834,4656.5,4654.6,3.0]
[1755878747519,0.4404,4656.4,4654.5,13.70355399]
[1755878747924,0.4404,4656.4,4654.6,0.19933504]
[1755878748090,0.02,4656.8,4656.0,13.70355399]
[1755878748425,0.02,4656.8,4656.1,3.22081224]
[1755878748644,0.02,4656.8,4656.2,0.19933504]
[1755878748824,0.02,4656.8,4655.7,3.0]
[1755878748987,0.02,4656.8,4655.8,0.19931372]
[1755878749194,0.1072,4656.4,4655.9,0.19931372]
[1755878749512,0.1072,4656.1,4656.0,0.19931372]
[1755878749713,4.018,4656.4,4656.0,0.49309893]
[1755878749912,4.018,4656.6,4656.3,3.0]
[1755878750222,4.018,4656.6,4656.4,0.19939893]
[1755878750392,4.018,4656.6,4656.5,0.19939893]
[1755878751143,4.7647,4656.6,4656.5,0.19939893]
[1755878751334,4.018,4656.6,4656.5,0.19939893]
[1755878752027,4.3243,4656.6,4656.5,0.19939893]
[1755878752328,5.20985,4656.6,4656.5,0.19939893]
[1755878752921,5.86985,4656.6,4656.5,0.19939893]
[1755878753122,8.86985,4656.6,4656.5,0.19939893]
[1755878753540,3.66,4656.5,4655.8,0.02]
[1755878753757,8.86985,4656.6,4653.8,0.02]
[1755878753758,0.09,4654.2,4653.8,0.02]
[1755878753906,0.3063,4653.9,4653.8,0.02]
[1755878754108,0.1072,4653.9,4653.8,0.02]
[1755878754846,1.4067,4653.9,4653.8,0.02]
[1755878755137,0.66,4653.8,4653.3,0.001]
[1755878755340,0.11004,4653.7,4653.3,0.001]
[1755878755703,0.4404,4653.6,4653.3,0.001]
[1755878755905,4.017,4653.5,4653.3,0.001]
[1755878757334,0.09,4654.2,4653.3,0.001]
[1755878757335,0.09,4654.2,4653.4,0.4412]
[1755878757548,0.09,4654.2,4653.9,3.0]
[1755878759648,4.017,4654.5,4653.9,3.0]
[1755878760211,1.651,4655.5,4653.9,3.0]
[1755878760212,1.651,4655.5,4653.9,4.6723554]
[1755878760418,4.017,4655.4,4655.1,13.70355399]
[1755878760644,4.017,4655.4,4655.1,14.14475399]
[1755878760948,4.016,4656.1,4655.2,3.4412]
[1755878761159,0.4604,4656.8,4655.2,3.4412]
[1755878761160,0.02,4656.8,4655.8,13.60355399]
[1755878761334,4.016,4656.7,4656.5,13.70355399]
[1755878764751,0.1072,4656.6,4656.5,13.70355399]
[1755878765218,0.1072,4656.6,4656.5,13.61355399]
[1755878766624,0.8539,4656.6,4655.3,3.001]
[1755878766824,0.1072,4655.7,4655.3,3.001]
[1755878767932,4.015,4655.9,4655.3,0.001]
[1755878768132,0.1072,4655.4,4655.3,0.001]
[1755878768326,0.1072,4655.4,4655.3,3.001]
[1755878768526,0.1072,4655.7,4655.3,3.7548]
[1755878769451,0.1072,4655.7,4655.4,0.48018043]
[1755878769749,0.02,4655.8,4655.6,0.2951]
[1755878769949,0.02,4655.8,4655.6,3.2951]
[1755878770150,0.02,4655.8,4655.6,0.2951]
[1755878770657,0.02,4655.8,4655.7,0.4587]
[1755878770825,0.1072,4656.1,4655.7,0.7538]
[1755878771025,0.1072,4656.1,4656.0,16.70355399]
[1755878772224,0.1072,4656.1,4656.0,17.45735399]
[1755878772529,0.1072,4656.5,4656.0,17.45735399]
[1755878772724,0.1072,4656.5,4656.3,3.0]
[1755878773155,0.1072,4656.5,4656.3,3.4587]
[1755878773355,0.1072,4656.5,4656.3,3.0]
[1755878773955,0.1072,4656.5,4655.7,13.70355399]
[1755878774258,0.1072,4656.5,4655.8,3.0]
[1755878774550,0.1072,4656.1,4655.6,3.0]
[1755878774764,0.1072,4656.1,4656.0,16.99865399]
[1755878775129,0.1072,4656.1,4656.0,17.45735399]
[1755878775446,0.02,4656.8,4656.1,3.0]
[1755878775631,0.1072,4656.3,4656.1,3.0]
[1755878776956,0.1072,4656.3,4656.1,2.95]
[1755878777746,0.3101,4656.2,4655.8,0.02]
[1755878777948,0.7672,4655.9,4655.8,0.02]
[1755878778148,0.1072,4655.9,4655.8,0.21998151]
[1755878778461,1.5366,4655.9,4655.8,0.21998151]
[1755878778694,1.94842,4655.9,4655.8,0.21998151]
[1755878778833,0.02,4656.8,4655.8,0.51508151]
[1755878779033,0.002,4657.3,4656.2,3.0]
[1755878779254,0.002,4657.3,4657.2,16.99865399]
[1755878779453,0.002,4657.3,4657.2,17.1986355]
[1755878779766,0.002,4657.3,4657.2,16.9035355]
[1755878779933,0.002,4657.3,4657.2,17.1986355]
[1755878780262,0.002,4657.3,4657.2,3.36460132]
[1755878781245,0.002,4657.3,4657.2,3.19998151]
[1755878781745,0.3121,4657.3,4657.2,3.19998151]
[1755878781947,0.002,4657.3,4657.2,3.19998151]
[1755878782354,0.002,4657.3,4657.2,3.95378151]
[1755878782586,0.002,4657.3,4657.2,3.49508151]
[1755878783293,0.002,4657.3,4657.2,3.95378151]
[1755878783497,0.002,4657.3,4657.2,3.49508151]
[1755878783795,0.7714,4657.3,4657.2,0.19998151]
[1755878784101,1.4314,4657.3,4657.2,0.19998151]
[1755878784393,2.09054,4657.3,4657.2,0.19998151]
[1755878784595,0.66,4657.2,4655.8,0.16221806]
[1755878784798,0.66,4657.2,4656.0,13.70355399]
[1755878784983,0.66,4657.0,4656.1,0.1998802]
[1755878785189,0.66,4656.8,4656.2,0.19988608]
[1755878785502,0.4669,4656.7,4656.5,13.70355399]
[1755878785706,4.009,4656.7,4656.6,0.20007799]
[1755878785994,4.009,4656.7,4656.5,13.70355399]
[1755878785995,4.3191,4656.7,4655.6,3.0]
[1755878786322,1.65,4656.6,4656.3,3.0]
[1755878786668,0.002,4657.3,4656.5,0.2951]
[1755878786911,0.002,4657.3,4657.2,3.0]
[1755878788008,0.002,4657.3,4657.2,3.2951]
[1755878788311,0.002,4657.7,4657.3,3.0]
[1755878788600,0.002,4657.7,4657.3,0.7538]
[1755878788780,0.1072,4657.5,4657.3,0.2951]
[1755878788980,0.1072,4657.5,4657.4,0.4587]
[1755878789210,0.1072,4657.5,4657.4,0.7538]
[1755878789667,0.002,4657.7,4657.4,0.2951]
[1755878789869,0.1072,4657.6,4657.4,0.2951]
[1755878790077,0.1072,4657.6,4657.1,3.0]
[1755878790402,0.1072,4657.6,4657.2,0.02147212]
[1755878790572,0.1072,4657.6,4657.2,0.48017212]
[1755878790772,0.1072,4657.6,4657.5,0.2951]
[1755878791068,0.002,4657.7,4657.5,0.2951]
[1755878791273,0.002,4657.7,4657.6,0.02147028]
[1755878791474,0.002,4657.7,4657.6,0.31657028]
[1755878791679,0.002,4657.7,4657.6,0.77527028]
[1755878792007,0.002,4657.7,4657.6,0.44766543]
[1755878792175,0.002,4657.7,4657.3,0.1072]
[1755878792517,0.1072,4657.6,4657.2,0.02147212]
[1755878792670,0.1072,4657.6,4657.2,0.48017212]
[1755878793093,0.1072,4657.6,4657.3,0.4587]
[1755878793294,0.1072,4657.6,4657.4,0.0214712]
[1755878793521,5.4364,4657.5,4656.9,1.92400773]
[1755878793682,1.66314,4657.4,4656.0,1.92500773]
[1755878793993,2.1093,4657.3,4656.0,0.001]
[1755878794318,2.1093,4657.3,4656.3,13.70355399]
[1755878794609,0.3101,4656.4,4656.3,13.70355399]
[1755878794923,4.3161,4656.4,4656.3,13.70355399]
[1755878795206,1.65,4657.3,4656.3,13.70355399]
[1755878795413,1.65,4657.3,4657.2,16.70355399]
[1755878796172,2.4194,4657.3,4657.2,3.0]
[1755878796369,2.4194,4657.3,4656.6,3.0]
[1755878796585,1.65,4657.3,4656.6,3.0]
[1755878796793,0.002,4657.7,4656.0,0.001]
[1755878796794,0.002,4657.7,4657.3,3.0]
[1755878796994,0.002,4657.7,4657.6,0.2951]
[1755878797305,0.002,4657.7,4657.3,3.0]
[1755878797671,0.002,4657.7,4656.9,0.4587]
[1755878797996,0.002,4657.7,4657.4,3.0]
[1755878798797,0.002,4657.7,4657.6,0.3008]
[1755878798995,0.002,4657.7,4657.4,3.0214712]
[1755878798996,0.002,4657.7,4657.4,3.4563]
[1755878799208,0.002,4657.7,4657.4,3.0]
[1755878799986,0.002,4657.7,4656.8,13.70355399]
[1755878800188,0.4699,4657.6,4656.9,3.0]
[1755878800514,0.002,4657.7,4657.5,13.70355399]
[1755878800728,0.002,4657.7,4657.6,3.0]
[1755878801022,0.002,4657.7,4657.6,3.3008]
[1755878801324,0.002,4657.7,4657.6,3.0]
[1755878801712,0.002,4657.7,4657.6,3.7571]
[1755878802620,0.002,4657.7,4657.6,3.3008]
[1755878803183,0.002,4657.7,4657.6,3.32227028]
[1755878803626,0.002,4657.7,4657.6,3.77857028]
[1755878803824,0.002,4657.7,4657.6,4.28487292]
[1755878804415,0.02,4657.8,4657.6,4.28487292]
[1755878804622,0.002,4658.4,4657.7,0.74358711]
[1755878804914,0.002,4658.4,4658.3,16.70355399]
[1755878805612,0.002,4658.4,4658.3,17.62283334]
[1755878805812,0.1072,4658.9,4658.4,3.0]
[1755878806479,2.1199,4659.4,4658.4,3.0]
[1755878806803,0.1072,4658.5,4658.4,3.0]
[1755878807812,0.4208,4658.5,4658.4,3.0]
[1755878808316,0.4208,4658.5,4657.0,13.70355399]
[1755878808317,4.8937,4658.5,4657.0,13.70355399]
[1755878808516,0.1072,4657.2,4657.0,13.70355399]
[1755878809989,0.1072,4657.2,4657.1,3.001]
[1755878810491,0.1072,4657.2,4657.1,3.16228605]
[1755878811325,0.1072,4657.2,4657.1,3.46308605]
[1755878811529,0.1072,4657.2,4657.1,3.16228605]
[1755878811899,1.65,4658.0,4657.1,5.46615659]
[1755878812104,1.65,4658.0,4657.8,3.0]
[1755878812610,0.1072,4657.9,4657.8,3.0]
[1755878813202,0.8907,4657.9,4657.2,0.1072]
[1755878813388,0.1072,4657.9,4657.6,13.70355399]
[1755878813792,1.65,4658.0,4657.7,3.0]
[1755878813988,1.65,4658.0,4657.9,0.3008]
[1755878814195,1.65,4658.0,4657.7,3.0]
[1755878814196,0.002,4658.6,4657.7,3.0]
[1755878814424,0.1072,4657.9,4657.8,3.0]
[1755878814625,0.002,4658.6,4657.8,3.7571]
[1755878815127,0.002,4658.6,4658.5,3.0]
[1755878815422,0.3156,4658.6,4658.5,3.0]
[1755878815826,0.7855,4658.6,4658.5,3.0]
[1755878816540,0.002,4658.6,4658.5,3.0]
[1755878818321,0.002,4658.6,4658.5,5.4274554]
[1755878819228,0.002,4658.6,4658.5,4.9711554]
[1755878819429,0.002,4658.6,4658.5,4.9211554]
[1755878819627,0.02,4658.8,4658.5,5.3774554]
[1755878819800,0.02,4658.8,4658.6,0.02146567]
[1755878820001,0.02,4658.8,4658.5,4.6203554]
[1755878820196,0.02,4658.8,4658.5,2.95]
[1755878820830,0.02,4658.8,4658.7,0.3008]
[1755878821027,0.02,4659.8,4658.7,0.3008]
[1755878821195,0.02,4659.8,4659.7,13.70355399]
[1755878821391,0.02,4659.8,4659.7,16.70355399]
[1755878821626,0.02,4659.8,4659.7,17.46065399]
[1755878822329,0.02,4659.8,4659.7,19.60253199]
[1755878822539,1.649,4661.4,4659.7,19.60253199]
[1755878822540,4.0,4661.2,4660.5,3.0]
[1755878822830,1.649,4661.4,4659.8,3.0]
[1755878822831,0.3136,4660.6,4659.8,3.0]
[1755878823132,0.3118,4661.2,4660.5,3.0]
[1755878823429,1.649,4661.4,4660.5,3.02145692]
[1755878823600,1.649,4661.4,4660.5,3.0]
[1755878823797,0.4699,4662.0,4660.5,3.4563]
[1755878824001,4.0,4661.7,4660.5,3.4563]
[1755878824404,2.1189,4662.0,4660.5,3.4563]
[1755878824405,1.649,4662.0,4660.7,0.3008]
[1755878824606,0.11190806,4662.9,4660.7,0.3008]
[1755878824607,4.019,4662.8,4661.7,13.70355399]
[1755878824915,0.9065,4661.8,4661.1,3.0]
[1755878825328,0.9065,4661.8,4660.4,4.4553]
[1755878825329,0.4408,4661.8,4660.7,3.0]
[1755878825628,0.02,4661.8,4661.3,13.70355399]
[1755878825814,0.1072,4661.6,4661.4,3.0]
[1755878826203,0.3109,4661.5,4661.1,3.0]
[1755878826406,0.1072,4661.4,4660.8,3.0]
[1755878826632,0.1072,4660.9,4660.8,3.0]
[1755878827097,0.1072,4660.9,4660.7,13.70355399]
[1755878827299,0.1072,4660.9,4660.8,3.0]
[1755878827494,0.1072,4660.9,4660.8,3.7571]
[1755878827727,0.1072,4661.2,4660.8,5.52462094]
[1755878828041,0.1072,4661.2,4660.8,3.0]
[1755878828244,0.1072,4661.2,4660.8,3.4401]
[1755878828449,0.1072,4661.2,4661.1,0.2981]
[1755878828611,0.1072,4661.5,4661.1,0.2981]
[1755878828929,0.1072,4661.5,4661.4,16.70355399]
[1755878829131,0.1072,4661.5,4661.4,17.00165399]
[1755878829639,0.4015,4661.5,4661.4,3.0]
[1755878830309,0.1072,4661.5,4661.4,3.0]
[1755878830716,0.1072,4661.5,4661.4,3.7382]
[1755878830958,0.1072,4661.5,4661.4,3.0]
[1755878831445,0.4015,4661.5,4661.4,3.0]
[1755878832107,0.1072,4661.5,4661.4,3.0]
[1755878832634,0.022,4661.8,4661.4,3.0]
[1755878832635,0.022,4661.8,4661.5,3.0]
[1755878832844,0.022,4661.8,4661.7,16.91765399]
[1755878833203,0.022,4661.8,4661.7,17.35775399]
[1755878834453,0.022,4661.8,4661.7,16.61955399]
[1755878834605,0.022,4661.8,4661.7,17.35775399]
[1755878834931,0.022,4661.8,4661.7,19.4987365]
[1755878835337,0.022,4661.8,4661.7,17.7522411]
[1755878835506,0.022,4661.8,4661.7,21.7472411]
[1755878835705,0.022,4661.8,4661.7,17.7522411]
[1755878835934,0.022,4661.8,4661.7,17.6450411]
[1755878836141,0.022,4661.8,4661.7,17.35775399]
[1755878836435,0.022,4661.8,4661.7,16.91765399]
[1755878837010,0.02,4662.8,4661.8,3.0]
[1755878837204,0.02,4662.8,4662.7,0.2981]
[1755878837419,0.02,4662.8,4662.6,3.0]
[1755878837606,0.02,4662.8,4662.7,0.0214468]
[1755878838037,0.02,4662.8,4662.6,3.0]
[1755878838242,0.02,4662.8,4662.7,0.7596468]
[1755878838421,0.02,4662.8,4662.7,0.7382]
[1755878838624,0.02,4662.8,4662.7,0.2981]
[1755878839016,0.02,4662.8,4662.7,0.1631052]
[1755878839220,0.02,4662.8,4662.7,0.2981]
[1755878839516,0.3143,4662.8,4662.3,3.0]
[1755878839718,0.02,4662.8,4662.4,0.02144818]
[1755878839963,0.02,4662.8,4662.7,0.2981]
[1755878840115,0.02,4662.8,4662.7,0.7382]
[1755878840532,1.648,4664.1,4662.7,5.4116468]
[1755878840709,1.648,4664.1,4663.7,3.0]
[1755878840915,5.173,4664.8,4663.7,3.0]
[1755878841220,1.648,4666.7,4664.8,3.0]
[1755878841422,0.4697,4666.6,4665.7,16.70355399]
[1755878841624,1.76006124,4666.7,4665.7,17.00165399]
[1755878841810,1.648,4666.7,4665.7,21.59372893]
[1755878842018,0.02,4666.8,4666.7,3.0]
[1755878842369,5.152,4669.6,4667.0,0.66]
[1755878842370,1.648,4669.4,4667.0,0.66]
[1755878842512,0.02,4669.8,4667.9,0.66]
[1755878842714,0.02,4671.8,4669.2,2.264]
[1755878842963,0.00703904,4673.1,4671.9,3.0]
[1755878842964,1.88422396,4673.0,4671.9,3.0]
[1755878843169,1.76635893,4673.0,4672.1,0.2153]
[1755878843316,1.76635893,4673.0,4672.3,0.66]
[1755878843515,0.38624593,4675.0,4673.0,0.66]
[1755878843715,0.4897,4674.8,4673.2,0.66]
[1755878843938,0.4897,4674.8,4673.7,3.0]
[1755878844155,0.4697,4674.5,4673.7,0.19568996]
[1755878844312,0.02,4674.8,4673.7,0.35715821]
[1755878844973,0.02,4674.8,4674.5,3.0]
[1755878845267,0.02,4675.8,4674.7,3.0]
[1755878845549,0.662441,4679.8,4674.6,46.34392423]
[1755878845550,0.02,4679.8,4676.5,0.5]
[1755878845750,0.02,4679.8,4679.7,15.61553954]
[1755878845949,0.02,4679.8,4679.7,20.85073954]
[1755878846153,0.02,4679.8,4679.7,21.09875699]
[1755878846352,0.02825592,4680.0,4679.9,0.66]
[1755878846526,0.02,4683.8,4680.7,0.66]
[1755878846729,1.647,4686.2,4682.9,0.5]